fUST/lending_fUST_20251028
["ID","MTS","AMOUNT","RATE_DAILY","PERIOD"]
[392537681,1761635432648,-168.0,0.00018995,2]
[392537682,1761635432658,-59342.0,0.00019,2]
[392537683,1761635432667,-239.0,0.00019,2]
[392537684,1761635432676,-151.0,0.00019,2]
[392537685,1761635432686,-151.0,0.00019,2]
[392537686,1761635432696,-151.0,0.00019,2]
[392537687,1761635432706,-151.0,0.00019,2]
[392537688,1761635432716,-769.82526428,0.00019002,2]
[392537689,1761635432726,-401.9540843,0.000191,2]
[392537690,1761635432736,-250.0,0.00019107,2]
[392537691,1761635432745,-214.128,0.00019137,2]
[392537692,1761635432754,-151.987,0.00019137,2]
[392537693,1761635432764,-262.513,0.00019137,2]
[392537694,1761635432774,-156.034,0.00019137,2]
[392537695,1761635432783,-639.611,0.00019152,2]
[392537696,1761635432793,-987.512,0.00019152,2]
[392537697,1761635432803,-2169.185,0.00019152,2]
[392537698,1761635432812,-4388.0,0.00019152,2]
[392537699,1761635433038,-500.0,0.00019178,2]
[392537700,1761635433050,-500.0,0.00019178,2]
[392537701,1761635433060,-151.0,0.00019178,2]
[392537702,1761635433070,-500.0,0.00019178,2]
[392537703,1761635433079,-151.0,0.00019178,2]
[392537704,1761635433089,-151.0,0.00019178,2]
[392537705,1761635433098,-150.31042704,0.00019178,2]
[392537706,1761635433108,-500.0,0.00019233,2]
[392537707,1761635433117,-500.0,0.00019233,2]
[392537708,1761635433126,-500.0,0.00019233,2]
[392537709,1761635433136,-500.0,0.00019288,2]
[392537710,1761635433146,-500.0,0.00019288,2]
[392537711,1761635433155,-500.0,0.00019288,2]
[392537712,1761635433164,-500.0,0.00019342,2]
[392537713,1761635433173,-500.0,0.00019342,2]
[392537714,1761635433183,-500.0,0.00019343,2]
[392537715,1761635433192,-273.44361042,0.00019373,2]
[392537716,1761635433202,-500.0,0.00019397,2]
[392537717,1761635433211,-500.0,0.00019397,2]
[392537718,1761635433220,-500.0,0.00019397,2]
[392537719,1761635433229,-500.0,0.00019452,2]
[392537720,1761635433239,-500.0,0.00019452,2]
[392537721,1761635433248,-551.04743742,0.00019452,2]
[392537722,1761635433257,-500.0,0.00019452,2]
[392537723,1761635433267,-514.76579544,0.00019507,2]
[392537724,1761635433277,-365.40219952,0.00019507,2]
[392537725,1761635433286,-500.0,0.00019507,2]
[392537726,1761635433295,-1936.852392,0.00019558,2]
[392537727,1761635433304,-500.0,0.00019562,2]
[392537728,1761635433314,-957.0,0.00019596,2]
[392537729,1761635433323,-500.0,0.00019617,2]
[392537730,1761635433332,-500.0,0.00019671,2]
[392537731,1761635433341,-500.0,0.00019726,2]
[392537732,1761635433351,-500.0,0.00019781,2]
[392537733,1761635433360,-500.0,0.00019836,2]
[392537734,1761635433369,-957.0,0.00019844,2]
[392537735,1761635433378,-834.33,0.00019862,2]
[392537736,1761635433387,-500.0,0.00019891,2]
[392537737,1761635433397,-235.87245985,0.00019945,3]
[392537738,1761635433406,-500.0,0.00019945,2]
[392537739,1761635433415,-1991.0,0.00019968,2]
[392537740,1761635433425,-161.404366,0.00019972,2]
[392537741,1761635433434,-515.18213962,0.00019993,2]
[392537742,1761635433443,-205.3470061,0.0002,2]
[392537743,1761635433452,-500.0,0.0002,2]
[392537744,1761635433462,-600.0,0.00020016,2]
[392537745,1761635433471,-155.673,0.00020017,2]
[392537746,1761635433481,-300.0,0.00020018,2]
[392537747,1761635433490,-300.0,0.00020018,2]
[392537748,1761635433499,-300.0,0.00020018,2]
[392537749,1761635433509,-300.0,0.00020018,2]
[392537750,1761635433518,-300.0,0.00020018,2]
[392537751,1761635433529,-300.0,0.00020018,2]
[392537752,1761635433539,-300.0,0.00020018,2]
[392537753,1761635433548,-300.0,0.00020018,2]
[392537754,1761635433558,-300.0,0.00020018,2]
[392537755,1761635433567,-300.0,0.00020018,2]
[392537756,1761635433576,-300.0,0.00020018,2]
[392537757,1761635433586,-300.0,0.00020018,2]
[392537758,1761635433595,-300.0,0.00020018,2]
[392537759,1761635433604,-300.0,0.00020018,2]
[392537760,1761635433613,-300.0,0.00020018,2]
[392537761,1761635433622,-500.0,0.00020055,2]
[392537762,1761635433632,-151.0,0.00020067,7]
[392537763,1761635433641,-636.95619466,0.0002011,2]
[392537764,1761635433651,-1991.0,0.0002012,2]
[392537765,1761635433660,-495.959232,0.00020187,2]
[392537766,1761635433671,-957.0,0.00020208,2]
[392537767,1761635433680,-2515.37020122,0.0002027,2]
[392537768,1761635433689,-1991.0,0.00020359,2]
[392537769,1761635433698,-1361.7955697,0.00020447,2]
[392537770,1761635433707,-165.382177,0.00020625,7]
[392537771,1761635433716,-426.11538461,0.00020625,2]
[392537772,1761635433726,-151.0,0.00020668,7]
[392537773,1761635433736,-151.0,0.00020668,7]
[392537774,1761635433745,-277.727632,0.00020668,7]
[392537775,1761635433755,-957.0,0.00020668,2]
[392537776,1761635433764,-301.4199372,0.00020809,2]
[392537777,1761635433774,-168.0,0.00020812,2]
[392537778,1761635433783,-168.0,0.0002089,2]
[392537779,1761635433792,-168.0,0.00021075,2]
[392537780,1761635433802,-168.0,0.00021095,2]
[392537781,1761635433812,-201.0,0.0002111,2]
[392537782,1761635433821,-1900.0,0.00021287,2]
[392537783,1761635433830,-151.0,0.00021287,7]
[392537784,1761635433840,-151.0,0.00021287,7]
[392537785,1761635433849,-20073.0,0.000215,2]
[392537786,1761635433859,-168.0,0.00021526,2]
[392537787,1761635433868,-168.0,0.00021543,2]
[392537788,1761635433878,-151.0,0.00021823,2]
[392537789,1761635433887,-601.35141614,0.00021878,2]
[392537790,1761635433896,-829.36844153,0.0002191,5]
[392537791,1761635433906,-202.36657348,0.00021917,2]
[392537792,1761635433915,-500.0,0.00021917,2]
[392537793,1761635433924,-500.0,0.00021917,2]
[392537794,1761635433933,-500.0,0.00021917,2]
[392537795,1761635433942,-367.22730055,0.00021917,2]
[392537796,1761635433952,-500.0,0.00021917,2]
[392537797,1761635433961,-500.0,0.00021917,2]
[392537798,1761635433970,-571.1836019,0.00021917,2]
[392537799,1761635433979,-500.0,0.00021917,2]
[392537800,1761635433989,-500.0,0.00021917,2]
[392537801,1761635433998,-500.0,0.00021917,2]
[392537802,1761635434008,-500.0,0.00021917,2]
[392537803,1761635434017,-157.69832017,0.00021917,2]
[392537804,1761635434029,-500.0,0.00021917,2]
[392537805,1761635434038,-500.0,0.00021917,2]
[392537806,1761635434047,-1690.05,0.00021917,2]
[392537807,1761635434056,-500.0,0.00021917,2]
[392537808,1761635434066,-500.0,0.00021917,2]
[392537809,1761635434075,-151.0,0.00021917,7]
[392537810,1761635434084,-152.885924,0.00021917,7]
[392537811,1761635434094,-500.0,0.00021917,2]
[392537812,1761635434104,-500.0,0.00021917,2]
[392537813,1761635434114,-500.0,0.00021917,2]
[392537814,1761635434124,-500.0,0.00021917,2]
[392537815,1761635434133,-500.0,0.00021917,2]
[392537816,1761635434142,-715.75,0.00021917,2]
[392537817,1761635434151,-500.0,0.00021917,2]
[392537818,1761635434160,-500.0,0.00021917,2]
[392537819,1761635434170,-180.47534867,0.00021917,2]
[392537820,1761635434179,-500.0,0.00021917,2]
[392537821,1761635434189,-500.0,0.00021917,2]
[392537822,1761635434199,-603.19,0.00021917,2]
[392537823,1761635434208,-500.0,0.00021917,2]
[392537824,1761635434218,-500.0,0.00021917,2]
[392537825,1761635434227,-1127.61,0.00021917,2]
[392537826,1761635434236,-530.38,0.00021917,2]
[392537827,1761635434245,-500.0,0.00021917,2]
[392537828,1761635434254,-500.0,0.00021917,2]
[392537829,1761635434263,-500.0,0.00021917,2]
[392537830,1761635434274,-634.37,0.00021917,2]
[392537831,1761635434283,-500.0,0.00021917,2]
[392537832,1761635434292,-500.0,0.00021917,2]
[392537833,1761635434301,-500.0,0.00021917,2]
[392537834,1761635434310,-500.0,0.00021917,2]
[392537835,1761635434320,-500.0,0.00021917,2]
[392537836,1761635434330,-500.0,0.00021917,2]
[392537837,1761635434339,-1000.0,0.00021917,2]
[392537838,1761635434348,-500.0,0.00021917,2]
[392537839,1761635434357,-500.0,0.00021917,2]
[392537840,1761635434367,-638.18,0.00021917,2]
[392537841,1761635434376,-500.0,0.00021917,2]
[392537842,1761635434385,-1152.11,0.00021917,2]
[392537843,1761635434394,-500.0,0.00021917,2]
[392537844,1761635434404,-708.47,0.00021917,2]
[392537845,1761635434414,-1290.55,0.00021917,2]
[392537846,1761635434424,-537.33,0.00021917,2]
[392537847,1761635434433,-556.59,0.00021917,2]
[392537848,1761635434443,-584.31378921,0.00021917,2]
[392537849,1761635434453,-584.67,0.00021917,2]
[392537850,1761635434462,-500.0,0.00021917,2]
[392537851,1761635434471,-500.0,0.00021917,2]
[392537852,1761635434480,-500.0,0.00021917,2]
[392537853,1761635434489,-500.0,0.00021917,2]
[392537854,1761635434499,-500.0,0.00021917,2]
[392537855,1761635434508,-500.0,0.00021917,2]
[392537856,1761635434518,-741.13,0.00021917,2]
[392537857,1761635434529,-500.0,0.00021917,2]
[392537858,1761635434538,-500.0,0.00021917,2]
[392537859,1761635434547,-500.0,0.00021917,2]
[392537860,1761635434557,-1281.8,0.00021917,2]
[392537861,1761635434566,-500.0,0.00021917,2]
[392537862,1761635434575,-500.0,0.00021917,2]
[392537863,1761635434585,-500.0,0.00021917,2]
[392537864,1761635434594,-500.0,0.00021917,2]
[392537865,1761635434603,-365.45343176,0.00021917,2]
[392537866,1761635434613,-500.0,0.00021917,2]
[392537867,1761635434622,-500.0,0.00021917,2]
[392537868,1761635434633,-500.0,0.00021917,2]
[392537869,1761635434643,-500.0,0.00021917,2]
[392537870,1761635434652,-500.0,0.00021917,2]
[392537871,1761635434662,-500.0,0.00021917,2]
[392537872,1761635434671,-500.0,0.00021917,2]
[392537873,1761635434681,-500.0,0.00021917,2]
[392537874,1761635434690,-500.0,0.00021917,2]
[392537875,1761635434700,-500.0,0.00021917,2]
[392537876,1761635434709,-500.0,0.00021917,2]
[392537877,1761635434719,-500.0,0.00021917,2]
[392537878,1761635434728,-991.69,0.00021917,2]
[392537879,1761635434738,-500.0,0.00021917,2]
[392537880,1761635434748,-1202.42,0.00021917,2]
[392537881,1761635434758,-500.0,0.00021917,2]
[392537882,1761635434768,-500.0,0.00021917,2]
[392537883,1761635434779,-500.0,0.00021917,2]
[392537884,1761635434788,-500.0,0.00021917,2]
[392537885,1761635434797,-569.6,0.00021917,2]
[392537886,1761635434807,-560.72,0.00021917,2]
[392537887,1761635434817,-500.0,0.00021917,2]
[392537888,1761635434827,-500.0,0.00021917,2]
[392537889,1761635434836,-500.0,0.00021917,2]
[392537890,1761635434846,-500.0,0.00021917,2]
[392537891,1761635434856,-500.0,0.00021917,2]
[392537892,1761635434866,-500.0,0.00021917,2]
[392537893,1761635434875,-596.63,0.00021917,2]
[392537894,1761635434885,-500.0,0.00021917,2]
[392537895,1761635434895,-500.0,0.00021917,2]
[392537896,1761635434905,-500.0,0.00021917,2]
[392537897,1761635434914,-500.0,0.00021917,2]
[392537898,1761635434925,-1041.06,0.00021917,2]
[392537899,1761635434935,-500.0,0.00021917,2]
[392537900,1761635434944,-500.0,0.00021917,2]
[392537901,1761635434954,-484.4801719,0.00021917,2]
[392537902,1761635434963,-707.6,0.00021917,2]
[392537903,1761635434973,-521.05096519,0.00021917,2]
[392537904,1761635434982,-500.0,0.00021917,2]
[392537905,1761635434991,-500.0,0.00021917,2]
[392537906,1761635435001,-500.0,0.00021917,2]
[392537907,1761635435010,-500.0,0.00021917,2]
[392537908,1761635435019,-603.15332433,0.00021917,2]
[392537909,1761635435030,-500.0,0.00021917,2]
[392537910,1761635435039,-500.0,0.00021917,2]
[392537911,1761635435053,-500.0,0.00021917,2]
[392537912,1761635435063,-500.0,0.00021917,2]
[392537913,1761635435072,-500.0,0.00021917,2]
[392537914,1761635435083,-740.89,0.00021917,2]
[392537915,1761635435093,-729.78,0.00021917,2]
[392537916,1761635435103,-500.0,0.00021917,2]
[392537917,1761635435112,-554.86,0.00021917,2]
[392537918,1761635435122,-1476.19,0.00021917,2]
[392537919,1761635435132,-500.0,0.00021917,2]
[392537920,1761635435143,-500.0,0.00021917,2]
[392537921,1761635435153,-500.0,0.00021917,2]
[392537922,1761635435162,-955.14,0.00021917,2]
[392537923,1761635435172,-663.08,0.00021917,2]
[392537924,1761635435181,-502.11691282,0.00021917,2]
[392537925,1761635435191,-500.0,0.00021917,2]
[392537926,1761635435200,-1193.15,0.00021917,2]
[392537927,1761635435209,-828.34,0.00021917,2]
[392537928,1761635435219,-500.0,0.00021917,2]
[392537929,1761635435229,-500.0,0.00021917,2]
[392537930,1761635435239,-1527.13,0.00021917,2]
[392537931,1761635435248,-500.0,0.00021917,2]
[392537932,1761635435258,-500.0,0.00021917,2]
[392537933,1761635435267,-490.74528519,0.00021917,2]
[392537934,1761635435278,-500.0,0.00021917,2]
[392537935,1761635435287,-1186.35,0.00021917,2]
[392537936,1761635435297,-500.0,0.00021917,2]
[392537937,1761635435306,-500.0,0.00021917,2]
[392537938,1761635435315,-846.87,0.00021917,2]
[392537939,1761635435324,-500.0,0.00021917,2]
[392537940,1761635435333,-500.0,0.00021917,2]
[392537941,1761635435342,-500.0,0.00021917,2]
[392537942,1761635435352,-500.0,0.00021917,2]
[392537943,1761635435361,-500.0,0.00021917,2]
[392537944,1761635435371,-2295.33,0.00021917,2]
[392537945,1761635435380,-151.0,0.00021917,7]
[392537946,1761635435390,-151.0,0.00021917,7]
[392537947,1761635435399,-151.0,0.00021917,7]
[392537948,1761635435409,-500.0,0.00021917,2]
[392537949,1761635435418,-500.0,0.00021917,2]
[392537950,1761635435428,-151.0,0.00021917,7]
[392537951,1761635435437,-151.0,0.00021917,7]
[392537952,1761635435447,-186.93799046,0.00021917,2]
[392537953,1761635435456,-151.0,0.00021917,7]
[392537954,1761635435466,-598.96,0.00021917,2]
[392537955,1761635435475,-500.0,0.00021917,2]
[392537956,1761635435484,-826.63,0.00021917,2]
[392537957,1761635435493,-908.14,0.00021917,2]
[392537958,1761635435502,-500.0,0.00021917,2]
[392537959,1761635435512,-500.0,0.00021917,2]
[392537960,1761635435521,-500.0,0.00021917,2]
[392537961,1761635435530,-500.0,0.00021917,2]
[392537962,1761635435539,-500.0,0.00021917,2]
[392537963,1761635435548,-500.0,0.00021917,2]
[392537964,1761635435557,-500.0,0.00021917,2]
[392537965,1761635435567,-500.0,0.00021917,2]
[392537966,1761635435577,-826.15,0.00021917,2]
[392537967,1761635435587,-1024.07,0.00021917,2]
[392537968,1761635435597,-500.0,0.00021917,2]
[392537969,1761635435606,-500.0,0.00021917,2]
[392537970,1761635435615,-500.0,0.00021917,2]
[392537971,1761635435625,-500.0,0.00021917,2]
[392537972,1761635435634,-651.86,0.00021917,2]
[392537973,1761635435644,-786.57,0.00021917,2]
[392537974,1761635435653,-1120.22,0.00021917,2]
[392537975,1761635435662,-500.0,0.00021917,2]
[392537976,1761635435672,-500.0,0.00021917,2]
[392537977,1761635435681,-500.0,0.00021917,2]
[392537978,1761635435690,-500.0,0.00021917,2]
[392537979,1761635435699,-500.0,0.00021917,2]
[392537980,1761635435709,-708.44,0.00021917,2]
[392537981,1761635435718,-500.0,0.00021917,2]
[392537982,1761635435727,-592.66,0.00021917,2]
[392537983,1761635435737,-584.83,0.00021917,2]
[392537984,1761635435747,-500.0,0.00021917,2]
[392537985,1761635435756,-500.0,0.00021917,2]
[392537986,1761635435765,-500.0,0.00021917,2]
[392537987,1761635435776,-667.11,0.00021917,2]
[392537988,1761635435785,-1435.66,0.00021917,2]
[392537989,1761635435795,-500.0,0.00021917,2]
[392537990,1761635435804,-2653.88,0.00021917,2]
[392537991,1761635435814,-500.0,0.00021917,2]
[392537992,1761635435823,-704.69,0.00021917,2]
[392537993,1761635435832,-500.0,0.00021917,2]
[392537994,1761635435842,-431.26944401,0.00021917,2]
[392537995,1761635435851,-500.0,0.00021917,2]
[392537996,1761635435860,-794.41,0.00021917,2]
[392537997,1761635435870,-1040.78,0.00021917,2]
[392537998,1761635435879,-500.0,0.00021917,2]
[392537999,1761635435888,-1280.75,0.00021917,2]
[392538000,1761635435898,-915.53,0.00021917,2]
[392538001,1761635435907,-2189.92,0.00021917,2]
[392538002,1761635435916,-500.0,0.00021917,2]
[392538003,1761635435926,-500.0,0.00021917,2]
[392538004,1761635435935,-574.84,0.00021917,2]
[392538005,1761635435945,-500.0,0.00021917,2]
[392538006,1761635435955,-1776.07,0.00021917,2]
[392538007,1761635435965,-244.82480136,0.00021917,2]
[392538008,1761635435974,-500.0,0.00021917,2]
[392538009,1761635435983,-500.0,0.00021917,2]
[392538010,1761635435992,-885.22,0.00021917,2]
[392538011,1761635436002,-500.0,0.00021917,2]
[392538012,1761635436012,-500.0,0.00021917,2]
[392538013,1761635436021,-500.0,0.00021917,2]
[392538014,1761635436031,-1000.0,0.00021917,2]
[392538015,1761635436040,-648.19,0.00021917,2]
[392538016,1761635436049,-1413.33,0.00021917,2]
[392538017,1761635436059,-500.0,0.00021917,2]
[392538018,1761635436068,-500.0,0.00021917,2]
[392538019,1761635436078,-500.0,0.00021917,2]
[392538020,1761635436088,-1472.19,0.00021917,2]
[392538021,1761635436097,-500.0,0.00021917,2]
[392538022,1761635436106,-500.0,0.00021917,2]
[392538023,1761635436115,-500.0,0.00021917,2]
[392538024,1761635436124,-500.0,0.00021917,2]
[392538025,1761635436133,-500.0,0.00021917,2]
[392538026,1761635436142,-894.76,0.00021917,2]
[392538027,1761635436151,-3175.04,0.00021917,2]
[392538028,1761635436160,-500.0,0.00021917,2]
[392538029,1761635436169,-500.0,0.00021917,2]
[392538030,1761635436179,-500.0,0.00021917,2]
[392538031,1761635436188,-500.0,0.00021917,2]
[392538032,1761635436197,-670.41,0.00021917,2]
[392538033,1761635436206,-558.04,0.00021917,2]
[392538034,1761635436215,-500.0,0.00021917,2]
[392538035,1761635436225,-500.0,0.00021917,2]
[392538036,1761635436234,-500.0,0.00021917,2]
[392538037,1761635436244,-500.0,0.00021917,2]
[392538038,1761635436253,-373.79811873,0.00021917,2]
[392538039,1761635436262,-1443.63,0.00021917,2]
[392538040,1761635436272,-500.0,0.00021917,2]
[392538041,1761635436281,-508.97050294,0.00021917,2]
[392538042,1761635436291,-500.0,0.00021917,2]
[392538043,1761635436300,-500.0,0.00021917,2]
[392538044,1761635436310,-500.0,0.00021917,2]
[392538045,1761635436319,-500.0,0.00021917,2]
[392538046,1761635436329,-532.74,0.00021917,2]
[392538047,1761635436338,-500.0,0.00021917,2]
[392538048,1761635436347,-500.0,0.00021917,2]
[392538049,1761635436356,-500.0,0.00021917,2]
[392538050,1761635436366,-500.0,0.00021917,2]
[392538051,1761635436375,-500.0,0.00021917,2]
[392538052,1761635436384,-514.99666383,0.00021917,2]
[392538053,1761635436393,-799.0,0.00021917,2]
[392538054,1761635436403,-500.0,0.00021917,2]
[392538055,1761635436412,-901.78,0.00021917,2]
[392538056,1761635436421,-500.0,0.00021917,2]
[392538057,1761635436430,-500.0,0.00021917,2]
[392538058,1761635436439,-500.0,0.00021917,2]
[392538059,1761635436449,-500.0,0.00021917,2]
[392538060,1761635436458,-500.0,0.00021917,2]
[392538061,1761635436467,-714.71,0.00021917,2]
[392538062,1761635436477,-500.0,0.00021917,2]
[392538063,1761635436487,-500.0,0.00021917,2]
[392538064,1761635436496,-1226.97,0.00021917,2]
[392538065,1761635436506,-995.93,0.00021917,2]
[392538066,1761635436515,-500.0,0.00021917,2]
[392538067,1761635436524,-933.25,0.00021917,2]
[392538068,1761635436534,-500.0,0.00021917,2]
[392538069,1761635436543,-842.36,0.00021917,2]
[392538070,1761635436553,-590.93,0.00021917,2]
[392538071,1761635436563,-500.0,0.00021917,2]
[392538072,1761635436572,-682.73,0.00021917,2]
[392538073,1761635436582,-500.0,0.00021917,2]
[392538074,1761635436591,-1269.67,0.00021917,2]
[392538075,1761635436779,-500.0,0.00021917,2]
[392538076,1761635436790,-500.0,0.00021917,2]
[392538077,1761635436799,-500.0,0.00021917,2]
[392538078,1761635436809,-500.0,0.00021917,2]
[392538079,1761635436818,-500.0,0.00021917,2]
[392538080,1761635436828,-500.0,0.00021917,2]
[392538081,1761635436837,-500.0,0.00021917,2]
[392538082,1761635436847,-500.0,0.00021917,2]
[392538083,1761635436857,-166.88865593,0.00021917,2]
[392538084,1761635436866,-500.0,0.00021917,2]
[392538085,1761635436875,-500.0,0.00021917,2]
[392538086,1761635436885,-500.0,0.00021917,2]
[392538087,1761635436894,-500.0,0.00021917,2]
[392538088,1761635436904,-1548.62,0.00021917,2]
[392538089,1761635436914,-648.16,0.00021917,2]
[392538090,1761635436923,-1713.43,0.00021917,2]
[392538091,1761635436932,-570.4,0.00021917,2]
[392538092,1761635436942,-500.0,0.00021917,2]
[392538093,1761635436951,-500.0,0.00021917,2]
[392538094,1761635436960,-807.86,0.00021917,2]
[392538095,1761635436970,-500.0,0.00021917,2]
[392538096,1761635436979,-607.99,0.00021917,2]
[392538097,1761635436989,-962.45,0.00021917,2]
[392538098,1761635436998,-500.0,0.00021917,2]
[392538099,1761635437007,-621.4,0.00021917,2]
[392538100,1761635437016,-1597.02,0.00021917,2]
[392538101,1761635437026,-500.0,0.00021917,2]
[392538102,1761635437035,-1840.85,0.00021917,2]
[392538103,1761635437045,-500.0,0.00021917,2]
[392538104,1761635437057,-500.0,0.00021917,2]
[392538105,1761635437066,-500.0,0.00021917,2]
[392538106,1761635437076,-500.0,0.00021917,2]
[392538107,1761635437085,-1281.11,0.00021917,2]
[392538108,1761635437095,-1245.66,0.00021917,2]
[392538109,1761635437105,-500.0,0.00021917,2]
[392538110,1761635437114,-500.0,0.00021917,2]
[392538111,1761635437123,-500.0,0.00021917,2]
[392538112,1761635437131,-1763.97,0.00021917,2]
[392538113,1761635437140,-540.2,0.00021917,2]
[392538114,1761635437149,-2436.61,0.00021917,2]
[392538115,1761635437158,-500.0,0.00021917,2]
[392538116,1761635437166,-1315.04,0.00021917,2]
[392538117,1761635437176,-500.0,0.00021917,2]
[392538118,1761635437185,-3051.8,0.00021917,2]
[392538119,1761635437194,-500.0,0.00021917,2]
[392538120,1761635437203,-500.0,0.00021917,2]
[392538121,1761635437212,-854.16,0.00021917,2]
[392538122,1761635437222,-500.0,0.00021917,2]
[392538123,1761635437232,-500.0,0.00021917,2]
[392538124,1761635437241,-1296.21,0.00021917,2]
[392538125,1761635437250,-558.93,0.00021917,2]
[392538126,1761635437261,-500.0,0.00021917,2]
[392538127,1761635437270,-567.19,0.00021917,2]
[392538128,1761635437279,-500.0,0.00021917,2]
[392538129,1761635437288,-538.03,0.00021917,2]
[392538130,1761635437298,-693.14,0.00021917,2]
[392538131,1761635437308,-500.0,0.00021917,2]
[392538132,1761635437317,-500.0,0.00021917,2]
[392538133,1761635437326,-729.65,0.00021917,2]
[392538134,1761635437335,-500.0,0.00021917,2]
[392538135,1761635437344,-493.13132325,0.00021917,2]
[392538136,1761635437353,-300.0,0.00021917,2]
[392538137,1761635437363,-500.0,0.00021917,2]
[392538138,1761635437374,-500.0,0.00021917,2]
[392538139,1761635437383,-811.98,0.00021917,2]
[392538140,1761635437392,-1562.88,0.00021917,2]
[392538141,1761635437401,-610.16,0.00021917,2]
[392538142,1761635437410,-500.0,0.00021917,2]
[392538143,1761635437420,-500.0,0.00021917,2]
[392538144,1761635437429,-500.0,0.00021917,2]
[392538145,1761635437438,-1066.35,0.00021917,2]
[392538146,1761635437447,-608.81,0.00021917,2]
[392538147,1761635437456,-500.0,0.00021917,2]
[392538148,1761635437465,-600.01,0.00021917,2]
[392538149,1761635437474,-500.0,0.00021917,2]
[392538150,1761635437483,-500.0,0.00021917,2]
[392538151,1761635437492,-1001.11,0.00021917,2]
[392538152,1761635437501,-632.42,0.00021917,2]
[392538153,1761635437510,-961.06,0.00021917,2]
[392538154,1761635437519,-500.0,0.00021917,2]
[392538155,1761635437529,-1172.41,0.00021917,2]
[392538156,1761635437538,-500.0,0.00021917,2]
[392538157,1761635437547,-675.95,0.00021917,2]
[392538158,1761635437556,-500.0,0.00021917,2]
[392538159,1761635437566,-500.0,0.00021917,2]
[392538160,1761635437575,-537.35,0.00021917,2]
[392538161,1761635437584,-622.73,0.00021917,2]
[392538162,1761635437593,-500.0,0.00021917,2]
[392538163,1761635437603,-1475.32,0.00021917,2]
[392538164,1761635437612,-943.69,0.00021917,2]
[392538165,1761635437621,-527.73,0.00021917,2]
[392538166,1761635437630,-500.0,0.00021917,2]
[392538167,1761635437639,-500.0,0.00021917,2]
[392538168,1761635437649,-546.22,0.00021917,2]
[392538169,1761635437658,-802.51,0.00021917,2]
[392538170,1761635437668,-500.0,0.00021917,2]
[392538171,1761635437677,-500.0,0.00021917,2]
[392538172,1761635437686,-1323.07,0.00021917,2]
[392538173,1761635437695,-500.0,0.00021917,2]
[392538174,1761635437704,-1081.49,0.00021917,2]
[392538175,1761635437713,-808.32,0.00021917,2]
[392538176,1761635437723,-500.0,0.00021917,2]
[392538177,1761635437732,-500.0,0.00021917,2]
[392538178,1761635437741,-2191.24,0.00021917,2]
[392538179,1761635437750,-500.0,0.00021917,2]
[392538180,1761635437759,-500.0,0.00021917,2]